Cogmind - Beta 17 @@@ ROGUE MODE // 2026.07.11 @ 16:49:34 Player: H3-MLN Result: Destroyed by Y-45 Defender with Heavy Assault Rifle Performance ------------- Evolutions (2) 1000 Regions Visited (12) 2400 Robots Destroyed (253) 1265 Value Destroyed (9362) 9362 Prototype IDs (51) 1020 Alien Tech Used (0) 0 Bonus (3719) 3719 TOTAL SCORE: 18766 Bonus ------- High Alert Combat Kills 1529 Follower Combat Kills 338 Entered Garrisons 600 Used RIF Installer 1000 Aligned with FarCom 300 Friendly Fire -48 Cogmind --------- Core Integrity 0/550 Matter 220/300 Energy 80/100 System Corruption 8% Temperature Cool (9) Movement Walking (120) Location -8/Garrison Parts ------- > --- POWER (1) -------- (None) > --- PROPULSION (3) --- Carbon-fiber Leg Improved Carbon-fiber Leg Advanced Myomer Leg > --- UTILITY (5) ------ High-capacity Storage Unit Experimental Targeting Computer Core Analyzer Medium Armor Plating Relay Coupler [Grunt] (29) > --- WEAPON (2) ------- 8R-AWN's Boregun Flak Cannon > --- INVENTORY (20) --- Improved VTOL Module Improved VTOL Module Improved VTOL Module Improved VTOL Module Experimental Coolant Injector Experimental Energy Well (600) Experimental Energy Well (600) Experimental Sensor Array Relay Coupler [Grunt] (27) Relay Coupler [Hunter] (23) Relay Coupler [Heavy] (22) Relay Coupler [Heavy] (17) Thief Drone Bay (1/3) Enhanced Autogun Enhanced Autogun 8R-AWN's Boregun Improved Grenade Launcher Remote Datajack Field Lobotomy Kit (5) AD-0RF's Magmablaster Peak State ------------ > --- POWER ------------ Light Particle Reactor > --- PROPULSION ------- Advanced Myomer Leg Potential Leg Potential Leg > --- UTILITY ---------- Coolant Network High-capacity Storage Unit Experimental Targeting Computer Light Armor Plating > --- WEAPON ----------- Heavy Ion Cannon 8R-AWN's Boregun > --- INVENTORY -------- Improved VTOL Module Improved VTOL Module Improved VTOL Module Improved VTOL Module Experimental Coolant Injector Experimental Energy Well Experimental Energy Well Experimental Sensor Array Relay Coupler [NC] Relay Coupler [Grunt] Relay Coupler [Specialist] Relay Coupler [Heavy] Thief Drone Bay YOLO Cannon 8R-AWN's Boregun Rocket Launcher Remote Datajack Field Lobotomy Kit AD-0RF's Magmablaster [Rating: 88] Favorites ----------- Power Light Particle Reactor Engine Cooled Ion Engine Power Core Micro Nuclear Core Reactor Light Particle Reactor Propulsion Light Treads Treads Light Treads Leg Potential Leg Wheel Armored Wheel Flight Unit Improved VTOL Module Utility High-capacity Storage Unit Device Coolant Network Storage High-capacity Storage Unit Processor Experimental Targeting Computer Hackware Relay Coupler [Grunt] Protection Light Armor Plating Weapon Enhanced Autogun Energy Gun Improved EM Shotgun Energy Cannon Advanced Beam Cannon Ballistic Gun Enhanced Autogun Ballistic Cannon Improved Light Cannon Launcher Rocket Launcher Special Weapon Remote Datajack Impact Weapon Heavy Flail Special Melee Weapon Datajack Build | -11 -10 -10 -9 -9 -9 -8 -8 -8 -8 -8 -8 -8 ------- Run | Yrd Mat Min Mat Min Exi Min Mat Gar Mat Gar Mat Gar Slots Evolved 4 | . . . 2 . . . 2 . . . . . Power . | . . . . . . . . . . . . . Propulsion 1 | . . . 1 . . . . . . . . . Utility 3 | . . . 1 . . . 2 . . . . . Weapon . | . . . . . . . . . . . . . Parts Attached 123 | 7 5 4 26 3 5 16 18 7 21 5 4 2 Power 11 | 2 . 1 3 . . 2 . . 2 1 . . Engine 6 | 2 . . 3 . . 1 . . . . . . Core 4 | . . 1 . . . . . . 2 1 . . Reactor 1 | . . . . . . 1 . . . . . . Propulsion 23 | 2 . . 7 . . 5 4 . 3 1 1 . Treads 13 | 2 . . 6 . . 2 3 . . . . . Leg 7 | . . . . . . 3 . . 2 1 1 . Wheel 2 | . . . 1 . . . . . 1 . . . Hover . | . . . . . . . . . . . . . Flight 1 | . . . . . . . 1 . . . . . Utility 42 | 1 2 1 7 1 1 6 6 2 9 3 2 1 Device 8 | . 2 . . 1 . 3 . . 2 . . . Storage 6 | 1 . 1 1 . . 2 . . 1 . . . Processor 3 | . . . 1 . . . 1 . 1 . . . Hackware 9 | . . . . . . . 2 . 3 2 1 1 Protection 16 | . . . 5 . 1 1 3 2 2 1 1 . Artifact . | . . . . . . . . . . . . . Weapon 47 | 2 3 2 9 2 4 3 8 5 7 . 1 1 Energy Gun 13 | 2 1 . 6 . . . 3 . 1 . . . Energy Cannon 6 | . 1 . 1 . . . 2 2 . . . . Ballistic Gun 15 | . 1 1 . 1 2 2 3 1 4 . . . Ballistic Cannon 3 | . . . 1 . . . . . 1 . . 1 Launcher 4 | . . 1 1 1 . . . . 1 . . . Special Weapon 4 | . . . . . 1 1 . 1 . . 1 . Impact Weapon 1 | . . . . . . . . 1 . . . . Slashing Weapon . | . . . . . . . . . . . . . Piercing Weapon . | . . . . . . . . . . . . . Special Melee Weapon 1 | . . . . . 1 . . . . . . . Unidentified Prototypes 11 | . . . 4 1 . 4 1 . 1 . . . Parts Lost 14 | . 1 . 2 . 1 3 3 . 2 1 . 1 Power 1 | . . . . . . . . . . . . 1 Propulsion 3 | . . . . . . 1 . . 2 . . . Utility 5 | . . . 2 . 1 . 1 . . 1 . . Weapon 5 | . 1 . . . . 2 2 . . . . . Highest Loss Streak 3 | . 1 . 2 . 1 3 3 . 2 1 . 1 To Critical Strikes . | . . . . . . . . . . . . . Average Backups 17 | 2 5 8 17 18 17 16 18 18 19 18 19 20 Power . | . 1 . . . . . . . . . . . Propulsion 4 | . . 2 6 6 5 1 3 4 4 4 4 4 Utility 6 | . 1 3 4 5 5 8 7 7 8 6 9 9 Weapon 5 | 1 1 2 5 5 5 5 5 5 5 5 4 5 Tool/Special . | . . . . . . . . . . . . . Unused Backups 42 | . 2 . 14 2 5 . 5 4 1 1 . 8 Power 2 | . 1 . 1 . . . . . . . . . Propulsion 14 | . . . 4 1 4 . 1 1 . . . 3 Utility 13 | . . . 4 . . . 3 1 . . . 5 Weapon 13 | . 1 . 5 1 1 . 1 2 1 1 . . Tool/Special . | . . . . . . . . . . . . . Average Slot Usage (%) 95 | . 94 100 99 100 96 89 88 90 89 98 98 99 Engine 4 | . 14 12 8 11 11 2 . . . . . . Core 3 | . . 1 2 . . . . . 7 9 9 8 Reactor 2 | . . . . . . 7 8 9 1 . . . Treads 13 | . 26 28 32 33 33 10 . . . . . . Leg 13 | . . . . . . 22 25 27 20 24 27 27 Wheel 1 | . . . . . . . . . 4 2 . . Device 5 | . 10 14 2 . . 4 7 9 8 4 . . Storage 10 | . 14 14 11 11 11 13 9 9 9 9 9 9 Processor 10 | . . . 8 11 7 . 8 9 15 18 18 18 Hackware 1 | . . . . . . . 1 . 2 2 11 9 Protection 8 | . . . 11 11 10 7 8 9 7 9 4 9 Energy Gun 2 | . 17 . 6 . . . 2 . . . . . Energy Cannon 5 | . 4 13 7 8 . . 6 7 2 . . . Ballistic Gun 8 | . 5 14 2 2 4 13 8 7 3 17 15 13 Ballistic Cannon 3 | . . . 5 11 11 . . . 4 . . 3 Peak Build Rating 88 | 6 7 10 21 26 36 73 81 87 88 58 57 56 Average Rating 44 | 5 6 7 17 20 22 57 76 81 61 56 55 54 On Entrance 37 | . 6 7 10 21 20 28 67 81 83 55 56 55 Avg Prop Armor Cover (%) 7 | . . . 16 . . 8 . . 8 4 . . Naked Turns . | . . . . . . . . . . . . . Heaviest Build 81 | 14 15 20 63 63 70 81 81 75 75 58 59 62 Greatest Support 90 | 40 40 40 60 60 60 90 90 90 90 63 63 63 Greatest Overweight (x) 5 | 1 . . 2 1 1 1 1 . 5 1 . . Average Overweight (x) . | . . . . . . . . . 2 . . . Largest Inventory Capacity 20 | 8 8 10 20 20 20 20 20 20 20 20 20 20 Average Capacity 18 | 7 8 9 18 20 20 20 20 20 20 20 20 20 Most Carried 20 | 4 8 10 20 20 20 20 20 20 20 20 20 20 Average Carried 18 | 2 5 8 18 19 19 19 19 19 19 19 19 20 Final Capacity 20 | 8 8 10 20 20 20 20 20 20 20 20 20 20 Final Carried 20 | 4 8 10 20 20 19 20 20 20 20 20 20 20 Class Distribution -------------------- 55% | Mutant 38% | Scavenger-Mutant 6% | Bothacker-Mutant Dominant Class ---------------- Mutant | -10/Materials Mutant | -10/Mines Mutant | -9/Materials Mutant | -9/Mines Scavenger-Mutant | -9/Exiles Mutant | -8/Mines Mutant | -8/Materials Mutant | -8/Garrison Scavenger-Mutant | -8/Materials Scavenger-Mutant | -8/Garrison Bothacker-Mutant | -8/Materials Bothacker-Mutant | -8/Garrison Resources | -11 -10 -10 -9 -9 -9 -8 -8 -8 -8 -8 -8 -8 ----------- Run | Yrd Mat Min Mat Min Exi Min Mat Gar Mat Gar Mat Gar Matter Collected 5922 | 270 170 190 926 116 25 416 731 605 1048 1163 106 156 Remotely 160 | . 160 . . . . . . . . . . . Salvage Created 9307 | 164 367 217 1700 178 . 358 2175 1172 1179 1499 101 197 Parts 515 | 6 9 24 113 11 . 9 95 69 79 84 5 11 Haulers Intercepted 20 | . 2 . 6 . . . 6 . 5 . 1 . Recyclers Shooed 7 | . 1 . 1 . . 2 . . 3 . . . Parts Field Recycled . | . . . . . . . . . . . . . Retrieved Matter . | . . . . . . . . . . . . . Parts Self-Destructed . | . . . . . . . . . . . . . Prevented . | . . . . . . . . . . . . . Parts Restored . | . . . . . . . . . . . . . Kills | -11 -10 -10 -9 -9 -9 -8 -8 -8 -8 -8 -8 -8 ------- Run | Yrd Mat Min Mat Min Exi Min Mat Gar Mat Gar Mat Gar Combat Hostiles Destroyed 183 | . 8 10 34 7 . 1 32 30 21 31 1 8 Guns 74 | . 7 3 6 . . 1 16 5 5 28 1 2 Cannons 57 | . . 1 13 3 . . 12 15 11 . . 2 AOE 48 | . . 6 15 4 . . 2 9 5 3 . 4 Classes Destroyed 17 | 2 5 . 4 . . . 3 1 2 . . . Worker 5 | . 1 . 1 . . . 2 . 1 . . . Builder 4 | . . . 2 . . . 1 . 1 . . . Tunneler 6 | 3 . . 2 . . . . . 1 . . . Hauler 20 | . 2 . 6 . . . 6 . 5 . 1 . Recycler 16 | 1 1 1 3 1 . 3 1 . 5 . . . Mechanic 3 | . . . 1 . . . 2 . . . . . Operator 4 | . . . 2 . . . 2 . . . . . Watcher 11 | . 1 . 4 . . . 2 1 2 1 . . Swarmer 58 | . 6 6 15 4 . . 3 9 8 3 . 4 Grunt 68 | . 2 4 11 3 . . 20 7 5 14 . 2 Brawler 2 | . . . . . . . 1 1 . . . . Duelist 4 | . . . . . . . 1 1 2 . . . Sentry 33 | . . . 8 . . . 6 8 4 6 1 . Specialist 4 | . . . . . . . . . 1 3 . . Hunter 2 | . . . . . . . 1 1 . . . . Programmer 10 | . . . . . . . . 3 . 5 . 2 Heavy 1 | . . . . . . . . . 1 . . . Savage 1 | . . . . . . . . . . 1 . . Best Kill Streak 8 | 3 6 5 8 5 . 1 8 6 6 6 1 4 Combat Bots Only 6 | . 6 5 6 4 . 1 3 6 5 6 1 4 Max Kills in Single Turn 4 | 1 1 3 4 3 . 1 3 4 2 2 1 3 Gunslinging . | . . . . . . . . . . . . . Exploded 4 | . . 3 3 2 . . 2 4 2 2 . 3 Melee . | . . . . . . . . . . . . . Uniques/NPCs Destroyed 1 | . . . . . . 1 . . . . . . AD-0RF (-8/Mines) Combat | -11 -10 -10 -9 -9 -9 -8 -8 -8 -8 -8 -8 -8 -------- Run | Yrd Mat Min Mat Min Exi Min Mat Gar Mat Gar Mat Gar Hostile Shots Fired 846 | . 87 19 124 8 10 56 185 95 93 124 8 37 Missed 236 | . 24 10 30 3 3 3 48 28 26 48 5 8 Hits 610 | . 63 9 94 5 7 53 137 67 67 76 3 29 Melee 13 | . . . . . . . 6 . 7 . . . Projectile 597 | . 63 9 94 5 7 53 131 67 60 76 3 29 Critical Strikes 20 | . . . . . 1 . 9 2 4 2 . 2 Part Disruptions 5 | . . . . . . 4 . . . . . 1 Damage Taken 8254 | . 550 126 1221 77 124 698 1986 860 1052 1069 44 447 Core 964 | . 160 19 129 . . 106 90 83 173 98 . 106 Absorbed by Shields . | . . . . . . . . . . . . . Regen/Repaired (Parts) 1405 | . 245 . 27 . . . 252 . 92 688 40 61 Core Remaining (%) 56 | 100 . 28 . . . 41 . . . . . . Volleys Fired 786 | 15 43 15 124 12 15 47 141 94 109 139 10 22 Largest 2 | 2 2 2 2 2 1 1 2 2 2 2 2 2 Hottest 130 | 90 100 80 113 101 30 33 98 130 128 50 50 62 Shots Fired 1309 | 30 86 25 231 22 15 47 274 154 142 239 12 32 Gun 866 | 30 86 10 114 1 15 46 194 55 54 235 4 22 Cannon 375 | . . 10 103 19 . 1 79 92 67 . . 4 Launcher 38 | . . 5 14 2 . . 1 7 4 2 . 3 Special 30 | . . . . . . . . . 17 2 8 3 Kinetic 681 | . . 10 81 11 15 47 107 55 90 235 4 26 Thermal 396 | 15 76 10 84 9 . . 79 92 31 . . . Explosive 38 | . . 5 14 2 . . 1 7 4 2 . 3 Electromagnetic 164 | 15 10 . 52 . . . 87 . . . . . Robot Hit Streak 34 | 6 24 8 13 6 13 7 27 16 18 34 3 10 Robot Miss Streak 6 | 2 4 3 4 4 1 4 3 6 4 5 1 2 Penetration Max 1 | . . . . . . . . . 1 . . . Secondary Targets 9 | . 1 . 1 . . . 2 . . 5 . . Max Gunslinging Chain 1 | . 1 . 1 . . . 1 . . 1 . . Shots Hit Robots 855 | 19 60 16 149 14 18 29 209 76 106 131 8 20 Core Hits 382 | 5 17 14 78 10 1 12 80 40 46 60 2 17 Critical Kills 3 | . . . . . . . . 2 . 1 . . Critical Parts Destroyed 5 | . . . . . 1 . . . 3 . . 1 Critical Strikes 26 | 1 11 . . 1 1 . 3 2 5 1 . 1 Burn 12 | 1 11 . . . . . . . . . . . Meltdown 1 | . . . . . . . . 1 . . . . Destroy 7 | . . . . . 1 . . 1 3 1 . 1 Blast 3 | . . . . 1 . . . . 2 . . . Corrupt 3 | . . . . . . . 3 . . . . . Melee Attacks 31 | . . . . . 4 . . 27 . . . . Impact 27 | . . . . . . . . 27 . . . . Slashing . | . . . . . . . . . . . . . Piercing . | . . . . . . . . . . . . . Sneak Attacks 4 | . . . . . 4 . . . . . . . Combat Hostiles . | . . . . . . . . . . . . . Follow-up Attacks . | . . . . . . . . . . . . . Damage Inflicted 19690 | 239 805 607 3282 609 217 488 4326 2368 3502 2523 54 670 Guns 9075 | 239 805 51 1038 14 217 488 2291 571 739 2303 54 265 Cannons 6814 | . . 142 1357 265 . . 1517 1143 2262 . . 128 Explosions 3776 | . . 414 887 330 . . 493 654 501 220 . 277 Melee . | . . . . . . . . . . . . . Ramming 25 | . . . . . . . 25 . . . . . Kinetic 8451 | . . 51 572 156 217 488 1240 571 2406 2303 54 393 Thermal 5890 | 64 728 142 1251 123 . . 1844 1143 595 . . . Explosive 3323 | . . 414 761 330 . . 166 654 501 220 . 277 Electromagnetic 2001 | 175 77 . 698 . . . 1051 . . . . . Impact . | . . . . . . . . . . . . . Slashing . | . . . . . . . . . . . . . Piercing . | . . . . . . . . . . . . . Highest Corruption 8 | . . . . . . . . 1 1 4 4 8 Average Corruption 2 | . . . . . . . . 1 1 3 4 5 Corruption Purged . | . . . . . . . . . . . . . Corruption Blocked . | . . . . . . . . . . . . . Effects 62 | . . . . . . . . 1 10 46 2 3 Message Errors 9 | . . . . . . . . . 2 6 1 . Matter Fused 12 | . . . . . . . . . 2 8 . 2 Heat Flow Errors 7 | . . . . . . . . . 4 2 1 . Energy Discharges 11 | . . . . . . . . . 1 10 . . Parts Rejected 1 | . . . . . . . . . . 1 . . Parts Fused 1 | . . . . . . . . . . 1 . . Data Loss (minor) 8 | . . . . . . . . 1 1 6 . . Data Loss (major) 2 | . . . . . . . . . . 2 . . Misfires 4 | . . . . . . . . . . 4 . . Alerts 3 | . . . . . . . . . . 3 . . Weapon Failures 4 | . . . . . . . . . . 3 . 1 Overload Shots . | . . . . . . . . . . . . . Overflow Damage 343 | . . 23 13 . . . 45 24 235 3 . . Projectiles 268 | . . . 10 . . . 15 8 235 . . . Explosions 75 | . . 23 3 . . . 30 16 . 3 . . Melee . | . . . . . . . . . . . . . Knockbacks 15 | . . . 1 2 . . 1 . 5 . . 6 Impact 1 | . . . . . . . 1 . . . . . Kinetic 13 | . . . 1 2 . . . . 5 . . 5 Secondary 1 | . . . . . . . . . . . . 1 Self-Inflicted Damage 309 | . . 42 172 16 . . . 34 . . . 45 Shots 13 | . . 4 6 1 . . . 1 . . . 1 Rammed . | . . . . . . . . . . . . . Targets Rammed 3 | . . . . . . . 3 . . . . . Kicked 3 | . . . . . . . 3 . . . . . Crushed . | . . . . . . . . . . . . . Highest Temperature 387 | 90 222 89 293 105 . 288 387 . 156 283 98 40 Average Temperature 77 | 37 75 31 82 38 . 72 141 . 27 35 31 14 Received Heat Transfer 3160 | . 72 15 333 24 . 1060 828 261 189 333 9 36 Effects 9 | . . . 3 . . . 6 . . . . . Energy Bleed 1 | . . . . . . . 1 . . . . . Interference 7 | . . . 3 . . . 4 . . . . . Damage (minor) 1 | . . . . . . . 1 . . . . . Siege Activations . | . . . . . . . . . . . . . Martial Activations . | . . . . . . . . . . . . . Shielding Activations . | . . . . . . . . . . . . . Robots Disrupted . | . . . . . . . . . . . . . Combat Hostiles . | . . . . . . . . . . . . . Robots Corrupted 3 | . . . 1 . . . 2 . . . . . Combat Hostiles 2 | . . . . . . . 2 . . . . . Parts Fried 12 | 1 1 . 3 . . . 7 . . . . . Impact Corruptions . | . . . . . . . . . . . . . Robots Melted 2 | . 1 . . . . . . 1 . . . . Combat Hostiles 2 | . 1 . . . . . . 1 . . . . Parts Melted 19 | 1 8 . 2 . . . 3 3 2 . . . Heat Transferred 11414 | 259 2960 296 2407 222 . . 2681 1664 925 . . . Parts Sabotaged . | . . . . . . . . . . . . . Parts Stolen . | . . . . . . . . . . . . . Parts Stripped . | . . . . . . . . . . . . . Power Chain Reactions 8 | . . . 4 . . . 4 . . . . . Alert | -11 -10 -10 -9 -9 -9 -8 -8 -8 -8 -8 -8 -8 ------- Run | Yrd Mat Min Mat Min Exi Min Mat Gar Mat Gar Mat Gar Maximum Alert Level 5 | . . . 2 . . . 1 4 3 5 3 2 Low Security (%) 43 | 100 100 100 26 100 . 100 88 2 . . . . Level 1 10 | . . . 28 . . . 11 4 12 1 . 42 Level 2 23 | . . . 44 . . . . 26 56 21 75 57 Level 3 12 | . . . . . . . . 33 31 34 24 . Level 4 8 | . . . . . . . . 32 . 33 . . Level 5 1 | . . . . . . . . . . 8 . . High Security . | . . . . . . . . . . . . . Max Security . | . . . . . . . . . . . . . Peak Influence 1752 | 10 125 156 585 111 . 15 285 1465 763 1752 854 627 Initial 854 | . . . 42 72 . . . 173 713 323 854 371 Average 418 | 1 57 49 328 25 . . 115 875 578 1021 672 435 Influence Increases 7228 | 20 229 295 1308 219 . 45 1046 1292 982 1479 37 276 Destroy 0b10 Robot/C 3860 | . 160 200 680 160 . . 640 600 560 660 20 180 Destroy 0b10 Robot/NC 355 | 20 25 5 105 5 . 15 80 5 85 5 5 . Destroy Leader 670 | . 26 40 190 30 . . 166 20 156 20 12 10 Allied During Kill 49 | . . . . 6 . . . . 30 9 . 4 Successful Hack 209 | . 3 . 55 . . . 39 54 32 26 . . Disable Machine 165 | . 15 15 45 . . 30 15 . 45 . . . Anti-Garrison Action 1150 | . . . . . . . . 400 . 700 . 50 Destroy Structure 485 | . . 20 98 18 . . 46 153 59 59 . 32 Partial Spotted 15 | . . . . . . . . 15 . . . . Lose Combat Pursuer 270 | . . 15 135 . . . 60 45 15 . . . Influence Decreases 6601 | 20 229 185 1232 405 . 45 779 94 1949 225 1218 220 Entered New Map 2301 | . . . 68 114 . . . 94 752 175 898 200 Time Decay 2730 | 20 219 185 694 291 . 30 599 . 562 . 130 . Lost Part 115 | . 10 . 20 . . 15 30 . 20 10 . 10 Lost Ally 130 | . . . . . . . . . 40 40 40 10 Purge Threat 1325 | . . . 450 . . . 150 . 575 . 150 . Squads Dispatched 17 | . . . 3 . . . 5 . 9 . . . Investigation 3 | . . . 1 . . . 2 . . . . . Extermination . | . . . . . . . . . . . . . Reinforcement 9 | . . . 2 . . . 3 . 4 . . . Assault 1 | . . . . . . . . . 1 . . . Garrison 4 | . . . . . . . . . 4 . . . Intercept . | . . . . . . . . . . . . . Searches Triggered . | . . . . . . . . . . . . . Construction Impeded 1 | . . . 1 . . . . . . . . . Haulers Reinforced . | . . . . . . . . . . . . . Active Scanning Responses . | . . . . . . . . . . . . . Cargo Convoy Interrupts . | . . . . . . . . . . . . . Stealth | -11 -10 -10 -9 -9 -9 -8 -8 -8 -8 -8 -8 -8 --------- Run | Yrd Mat Min Mat Min Exi Min Mat Gar Mat Gar Mat Gar Distress Signals 7 | . 1 . 3 . . . 3 . . . . . Communications Jammed . | . . . . . . . . . . . . . Distress Signals . | . . . . . . . . . . . . . Times Spotted 259 | . 9 11 54 8 1 2 49 33 43 36 3 10 Peak Tracking Total 6 | . 5 4 6 4 2 1 6 4 5 3 1 5 Tactical Retreats 12 | . . 1 4 . . 1 3 2 1 . . . Traps | -11 -10 -10 -9 -9 -9 -8 -8 -8 -8 -8 -8 -8 ------- Run | Yrd Mat Min Mat Min Exi Min Mat Gar Mat Gar Mat Gar Traps Triggered 3 | . . . . . . . . 1 . 2 . . Indirectly . | . . . . . . . . . . . . . Trap Hack Attempts . | . . . . . . . . . . . . . Triggered . | . . . . . . . . . . . . . Disarmed . | . . . . . . . . . . . . . Reprogrammed . | . . . . . . . . . . . . . Reused . | . . . . . . . . . . . . . Traps Extracted . | . . . . . . . . . . . . . Installed . | . . . . . . . . . . . . . Triggered . | . . . . . . . . . . . . . Machines | -11 -10 -10 -9 -9 -9 -8 -8 -8 -8 -8 -8 -8 ---------- Run | Yrd Mat Min Mat Min Exi Min Mat Gar Mat Gar Mat Gar Machines Disabled 25 | . 1 1 3 . 1 2 1 5 3 7 . 1 Max in Single Turn 1 | . 1 1 1 . 1 1 1 1 1 1 . 1 Garrison Relay 12 | . . . . . . . . 5 . 6 . 1 Machines Repaired . | . . . . . . . . . . . . . Machines Dismantled . | . . . . . . . . . . . . . Machines Sabotaged . | . . . . . . . . . . . . . Overloaded Fab Kills . | . . . . . . . . . . . . . Hacking | -11 -10 -10 -9 -9 -9 -8 -8 -8 -8 -8 -8 -8 --------- Run | Yrd Mat Min Mat Min Exi Min Mat Gar Mat Gar Mat Gar Machines Accessed 47 | . 3 . 11 1 2 . 11 4 8 3 4 . Terminals 29 | . 2 . 7 . . . 6 4 5 3 2 . Fabricators . | . . . . . . . . . . . . . Repair Stations 6 | . 1 . 2 . . . 2 . 1 . . . Recycling Units 1 | . . . . . . . . . 1 . . . Scanalyzers 5 | . . . 2 . . . 2 . . . 1 . Garrison Access 3 | . . . . . . . 1 . 1 . 1 . Total Hacks 145 | . 11 . 39 1 5 . 41 7 25 5 11 . Successful 83 | . 5 . 26 1 5 . 21 4 15 2 4 . Failed 61 | . 6 . 12 . . . 20 3 10 3 7 . Catastrophic 7 | . 1 . . . . . 3 . 1 1 1 . Database Lockouts 1 | . . . 1 . . . . . . . . . Manual 59 | . 4 . 17 . 1 . 18 1 13 1 4 . Terminals 90 | . 5 . 25 . . . 22 7 20 5 6 . Fabricators . | . . . . . . . . . . . . . Repair Stations 24 | . 6 . 6 . . . 10 . 2 . . . Recycling Units 2 | . . . . . . . . . 2 . . . Scanalyzers 18 | . . . 8 . . . 7 . . . 3 . Garrison Access 5 | . . . . . . . 2 . 1 . 2 . Terminal Hacks 27 | . 1 . 6 1 5 . 3 3 5 2 1 . Record 4 | . . . . . 4 . . . . . . . Robot Analysis 1 | . . . 1 . . . . . . . . . Prototype ID Bank 1 | . . . 1 . . . . . . . . . Open Door 1 | . . . . 1 . . . . . . . . Branch Access Points 1 | . . . . . . . 1 . . . . . Emergency Access Points 2 | . . . . . . . . 1 . 1 . . Unreport Threat 7 | . . . 3 . . . 1 . 2 . 1 . Locate Traps 4 | . 1 . 1 . . . . . 2 . . . Hauler Manifests 1 | . . . . . . . 1 . . . . . Zone Layout 1 | . . . . . . . . . 1 . . . Garrison Registry 1 | . . . . . . . . 1 . . . . Security Stations 2 | . . . . . . . . 1 . 1 . . Proto ID Catalog 1 | . . . . . 1 . . . . . . . Fabricator Hacks . | . . . . . . . . . . . . . Repair Station Hacks 17 | . 4 . 5 . . . 7 . 1 . . . Scan Component 10 | . 2 . 3 . . . 4 . 1 . . . Repair 7 | . 2 . 2 . . . 3 . . . . . Recycling Unit Hacks . | . . . . . . . . . . . . . Scanalyzer 12 | . . . 8 . . . 4 . . . . . Insert Component 4 | . . . 2 . . . 2 . . . . . Analyze 4 | . . . 2 . . . 2 . . . . . Retrieve Study 4 | . . . 4 . . . . . . . . . Garrison Access Hacks 4 | . . . . . . . 1 . 1 . 2 . Unlock Access 3 | . . . . . . . 1 . 1 . 1 . Coupler Status 1 | . . . . . . . . . . . 1 . Unauthorized Hacks 23 | . . . 7 . . . 6 1 8 . 1 . Terminals 23 | . . . 7 . . . 6 1 8 . 1 . Track 1 | . . . . . . . . . . . 1 . Botnet 5 | . . . 1 . . . 1 1 2 . . . Operators 3 | . . . 1 . . . 1 . 1 . . . Skim 14 | . . . 5 . . . 4 . 5 . . . Fabricators . | . . . . . . . . . . . . . Repair Stations . | . . . . . . . . . . . . . Recycling Units . | . . . . . . . . . . . . . Scanalyzers . | . . . . . . . . . . . . . Garrison Access . | . . . . . . . . . . . . . Data Cores Recovered . | . . . . . . . . . . . . . Used . | . . . . . . . . . . . . . Hacking Detections 40 | . 2 . 11 . . . 10 3 7 3 4 . Full Trace Events 3 | . . . . . . . 2 1 . . . . Feedback Events . | . . . . . . . . . . . . . Feedback Blocked . | . . . . . . . . . . . . . Robot Schematics Acquired . | . . . . . . . . . . . . . Robots Built . | . . . . . . . . . . . . . Authchips . | . . . . . . . . . . . . . Time . | . . . . . . . . . . . . . Total Robot Build Rating . | . . . . . . . . . . . . . Part Schematics Acquired 4 | . . . 2 . . . 2 . . . . . Parts Built . | . . . . . . . . . . . . . Authchips . | . . . . . . . . . . . . . Time . | . . . . . . . . . . . . . Total Part Build Rating . | . . . . . . . . . . . . . Part Studies Acquired 4 | . . . 4 . . . . . . . . . Parts Repaired 7 | . 2 . 2 . . . 3 . . . . . Time 489 | . 52 . 134 . . . 303 . . . . . Parts Recycled . | . . . . . . . . . . . . . Recycled Matter . | . . . . . . . . . . . . . Retrieved Matter . | . . . . . . . . . . . . . Retrieved Components . | . . . . . . . . . . . . . Parts Scanalyzed 4 | . . . 2 . . . 2 . . . . . Part Schematics Acquired 4 | . . . 2 . . . 2 . . . . . Parts Damaged . | . . . . . . . . . . . . . Bothacking | -11 -10 -10 -9 -9 -9 -8 -8 -8 -8 -8 -8 -8 ------------ Run | Yrd Mat Min Mat Min Exi Min Mat Gar Mat Gar Mat Gar Used RIF Installer 2 | . . . . . . . . 1 . 1 . . Coupler Efficiency 1 | . . . . . . . . . . 1 . . Robots Hacked 21 | . . . . . 4 . . . 10 2 3 2 Non-combat 7 | . . . . . 3 . . . 4 . . . Combat 14 | . . . . . 1 . . . 6 2 3 2 Robot Hacks Applied 24 | . . . . . 4 . . . 13 2 3 2 parse_system 5 | . . . . . 4 . . . 1 . . . ignore_parts 1 | . . . . . . . . . 1 . . . purge_threat 2 | . . . . . . . . . 2 . . . amplify_resonance 1 | . . . . . . . . . 1 . . . wipe_record 2 | . . . . . . . . . 2 . . . reboot_system 2 | . . . . . . . . . . 1 1 . overwrite_iff 4 | . . . . . . . . . 2 1 . 1 formatsys_low 2 | . . . . . . . . . 2 . . . formatsys_high 5 | . . . . . . . . . 2 . 2 1 Relay Couplers Released 46 | . . . . . . . . 20 . 23 . 3 Machine Destruction 46 | . . . . . . . . 20 . 23 . 3 Attached 7 | . . . . . . . . . 3 2 1 1 Fabnet Peak Effective % . | . . . . . . . . . . . . . Robots Rewired 2 | . . . . . . . . . . 2 . . Allies Hacked 2 | . . . . . . . . . . . . 2 Hacks Repelled . | . . . . . . . . . . . . . Allies | -11 -10 -10 -9 -9 -9 -8 -8 -8 -8 -8 -8 -8 -------- Run | Yrd Mat Min Mat Min Exi Min Mat Gar Mat Gar Mat Gar Total Allies 15 | . . . . 2 . . . . 6 3 2 2 Largest Group 4 | . . . . 2 2 . . . 3 4 4 4 Highest-Rated Group 75 | . . . . 47 47 . . . 53 75 54 56 Highest-Rated Ally 40 | . . . . 31 31 . . . 40 31 15 16 Total Orders 38 | . . . . . 2 3 . . 1 25 2 5 STAY 15 | . . . . . . . . . . 11 1 3 FOLLOW 7 | . . . . . . . . . . 6 . 1 AID 11 | . . . . . . . . . 1 8 1 1 RETURN 5 | . . . . . 2 3 . . . . . . Ally Attacks 136 | . . . . 6 19 56 . . 28 13 3 11 Total Damage 1627 | . . . . 106 161 336 . . 614 176 84 150 Kills 13 | . . . . 1 . . . . 9 2 . 1 Allies Corrupted . | . . . . . . . . . . . . . Allies Melted 1 | . . . . . . . . . . 1 . . Intel | -11 -10 -10 -9 -9 -9 -8 -8 -8 -8 -8 -8 -8 ------- Run | Yrd Mat Min Mat Min Exi Min Mat Gar Mat Gar Mat Gar Active Infowar (turns) 1697 | . 165 878 579 . . 75 . . . . . . Sensors 75 | . . . . . . 75 . . . . . . Seismic 1622 | . 165 878 579 . . . . . . . . . Robot Analysis Total 1 | . . . 1 . . . . . . . . . Derelict Logs Recovered 3 | . . 1 . 2 . . . . . . . . Drone Launches 13 | . . . . . 6 7 . . . . . . Drone Recoveries 11 | . . . . . 5 6 . . . . . . Exploration | -11 -10 -10 -9 -9 -9 -8 -8 -8 -8 -8 -8 -8 ------------- Run | Yrd Mat Min Mat Min Exi Min Mat Gar Mat Gar Mat Gar Turns Passed 14990 | 211 599 878 2864 1282 620 800 1970 1313 1675 2299 275 204 Spaces Moved 7820 | 102 240 512 1273 610 313 563 945 892 764 1317 184 105 Core 14 | 14 . . . . . . . . . . . . Treads 3142 | 88 240 512 1250 610 313 108 21 . . . . . Legs 4214 | . . . . . . 455 924 892 337 1317 184 105 Wheels 450 | . . . 23 . . . . . 427 . . . Hover . | . . . . . . . . . . . . . Flight . | . . . . . . . . . . . . . Fastest Speed 50 | 50 160 160 110 160 160 100 100 100 100 120 120 120 Average Speed 141 | 148 160 160 167 199 178 111 102 100 154 134 120 120 Slowest Speed 260 | 160 160 160 200 200 200 200 225 100 260 190 120 120 Overloaded Moves . | . . . . . . . . . . . . . Propulsion Burnouts . | . . . . . . . . . . . . . Robots Hopped . | . . . . . . . . . . . . . Potential Cave-ins . | . . . . . . . . . . . . . Cave-ins Triggered . | . . . . . . . . . . . . . Exploration Rate (%) 64 | 5 39 97 88 98 70 86 82 95 48 92 17 16 Regions Visited 12 Branch Regions 4 Pre-discovered Areas 5 | . . . 2 . 1 . . . 2 . . . Known Exits Taken 4 | . . . . . . 1 1 . 1 . 1 . Unknown Exits Taken 6 | 1 1 1 1 1 1 . . . . . . . Scrap Searched 6 | . . 1 . 4 . 1 . . . . . . Spaces Dug 18 | . . . . . . . . 18 . . . . Terrain Destroyed 361 | . . 29 100 27 . 1 43 59 62 26 . 14 Melee 18 | . . . . . . . . 18 . . . . Projectile 36 | . . . 1 . . 1 9 1 24 . . . AOE 307 | . . 29 99 27 . . 34 40 38 26 . 14 Terrain Rammed . | . . . . . . . . . . . . . Walls Destroyed . | . . . . . . . . . . . . . Machines Disabled . | . . . . . . . . . . . . . Actions | -11 -10 -10 -9 -9 -9 -8 -8 -8 -8 -8 -8 -8 --------- Run | Yrd Mat Min Mat Min Exi Min Mat Gar Mat Gar Mat Gar Total 10544 | 128 369 547 1794 654 360 686 1671 1126 1119 1702 231 157 Wait 1408 | 1 66 6 279 19 9 34 509 78 182 174 30 21 Move 7809 | 101 239 511 1272 609 312 562 944 891 764 1316 183 105 Hop . | . . . . . . . . . . . . . Pick Up 110 | 4 9 3 39 3 4 8 19 8 6 5 1 1 Fast Attach 54 | 6 4 . 5 3 1 3 8 1 17 5 1 . Attach 35 | . 2 . 5 . 2 8 10 . 5 2 1 . Detach 6 | . . . . . . 2 1 . 2 1 . . Swap 118 | 1 1 8 33 2 4 10 17 14 14 5 3 6 Drop 136 | . 5 4 37 6 9 12 19 13 20 8 2 1 Fire 786 | 15 43 15 124 12 15 47 141 94 109 139 10 22 Melee 31 | . . . . . 4 . . 27 . . . . Ram . | . . . . . . . . . . . . . Kick 3 | . . . . . . . 3 . . . . . Crush . | . . . . . . . . . . . . . Escape Stasis 10 | . . . . . . . . . . 10 . . Rewire 38 | . . . . . . . . . . 37 . 1 Trap . | . . . . . . . . . . . . . Miscellaneous . | . . . . . . . . . . . . . Route ------- -11/Scrapyard -10/Materials -10/Mines (discovered 2 exits: *Mat x2) -9/Materials (discovered 5 exits: *Mat x3 / *Min x2) -9/Mines (discovered 3 exits: *Mat x2 / *Exi) -9/Exiles (discovered 2 exits: [*Min x2]) -8/Mines (discovered 2 exits: *Mat x2) -8/Materials (discovered 4 exits: *Fac x3 / Gar) -8/Garrison (discovered 3 exits: *Mat x3) -8/Materials (discovered 3 exits: *Fac x2 / Gar) -8/Garrison (discovered 4 exits: *Fac x3 / *Mat) -8/Materials -8/Garrison History --------- Turn | Location | Event 15 | -11/Scrapyard | Discovered new exit (range 14) 212 | -11/Scrapyard | Entered Materials 303 | -10/Materials | Build established: Mutant 315 | -10/Materials | Core integrity fell below 50% 515 | -10/Materials | Repaired Lgt. Treads 543 | -10/Materials | Repaired Lgt. Treads 781 | -10/Materials | Discovered new exit (range 9) 811 | -10/Materials | Entered Mines 848 | -10/Mines | Met a Derelict bent on vengeance 897 | -10/Mines | Discovered new exit (range 10) 1182 | -10/Mines | Learned 2 Materials zone layouts 1366 | -10/Mines | Discovered new exit (range 11) 1480 | -10/Mines | Found a damaged Exp. Sensor Array with a note attached 1484 | -10/Mines | Found Prototype Device 1689 | -10/Mines | Entered Materials 1689 | -9/Materials | Evolved 2 slots: Propulsion x1, Utility x1 1936 | -9/Materials | Identified Exp. Sensor Array 2268 | -9/Materials | Discovered new exit (range 9) 2495 | -9/Materials | Repaired Exp. Sensor Array 2522 | -9/Materials | Repaired EM Pulse Gun 3203 | -9/Materials | Build established: Scavenger-Mutant 3216 | -9/Materials | Discovered new exit (range 13) 3783 | -9/Materials | Discovered new exit (range 15) 4004 | -9/Materials | Learned Storage terminal intel 4072 | -9/Materials | Identified exit to Materials 4072 | -9/Materials | Learned location of 1 exit from Materials 4132 | -9/Materials | Learned location of Mines (-8) 4181 | -9/Materials | Learned Storage trap positions 4247 | -9/Materials | Learned 2 Storage zone layouts 4248 | -9/Materials | Build established: Mutant 4334 | -9/Materials | Learned location of 3 exits from Materials 4337 | -9/Materials | Central database locked down 4553 | -9/Materials | Entered Mines 4607 | -9/Mines | Discovered exit to Materials (range 10) 4608 | -9/Mines | Received a Rocket Launcher from a helpful Derelict 4645 | -9/Mines | Learned location of 1 exit from Lower Caves 4766 | -9/Mines | Found the Drone Emporium 4782 | -9/Mines | Found Prototype Device 4782 | -9/Mines | Identified Thief Drone Bay 4913 | -9/Mines | Deemed a non-threat by the Exiles lab entrance 4913 | -9/Mines | Discovered new exit (range 5) 5030 | -9/Mines | Found a Scrap Suit stashed away for nefarious purposes 5174 | -9/Mines | Learned location of 1 exit from Materials 5236 | -9/Mines | Discovered exit to Materials (range 7) 5270 | -9/Mines | Found a hidden stash of uninstalled traps 5490 | -9/Mines | Found DCF Scrap (13 items) 5835 | -9/Mines | Entered Exiles 5835 | -9/Exiles | Accompanied by 2 allies 5861 | -9/Exiles | Discovered new exit (range 15) 5865 | -9/Exiles | Led the pair of lost Derelicts to a safe place 5889 | -9/Exiles | Met 8R-AWN 5920 | -9/Exiles | Met EX-HEX 6004 | -9/Exiles | Met EX-DEC 6049 | -9/Exiles | Learned location of Zion (-6) 6086 | -9/Exiles | Met EX-BIN 6110 | -9/Exiles | Aligned with FarCom system 6111 | -9/Exiles | Given EX-Vault access code 6148 | -9/Exiles | Opened EX-Vault 6163 | -9/Exiles | Found Field Lobotomy Kit 6170 | -9/Exiles | Found Potential Leg 6173 | -9/Exiles | Found Potential Leg 6183 | -9/Exiles | Found YOLO Cannon 6226 | -9/Exiles | Warned to stay clear of 0b10 Research branches 6233 | -9/Exiles | Exiles lab attacked by MAIN.C 6381 | -9/Exiles | Attacked by the Exiles 6408 | -9/Exiles | Found 8R-AWN's Boregun 6439 | -9/Exiles | Discovered new exit (range 10) 6455 | -9/Exiles | Stole three prototypes: Potential Leg, YOLO Cannon, Field Lobotomy Kit 6455 | -9/Exiles | Entered Mines 6456 | -8/Mines | AD-0RF came to Exiles' defense 6502 | -8/Mines | Core integrity fell below 50% 6507 | -8/Mines | Found 8R-AWN's Boregun 6520 | -8/Mines | Lost 3 parts (1n2w) 6683 | -8/Mines | Destroyed AD-0RF 6695 | -8/Mines | Found AD-0RF's Magmablaster 6707 | -8/Mines | Found Exp. Targeting Computer 6746 | -8/Mines | Discovered exit to Materials (range 11) 6760 | -8/Mines | Discovered exit to Materials (range 7) 7255 | -8/Mines | Entered Materials 7255 | -8/Materials | Evolved 2 slots: Utility x2 7256 | -8/Materials | Identified exit to Factory 7591 | -8/Materials | Lost 3 parts (1u2w) 7842 | -8/Materials | Repaired Broken Coolant Network 8319 | -8/Materials | Repaired Lgt. Particle Reactor 8419 | -8/Materials | Repaired Adv. Myomer Leg 8585 | -8/Materials | Identified exit to Garrison 9225 | -8/Materials | Entered Garrison 9261 | -8/Garrison | Garrison Relay disabled 9298 | -8/Garrison | Triggered checkpoint 9381 | -8/Garrison | Garrison Relay disabled 9481 | -8/Garrison | Installed Relay Interface Framework 9533 | -8/Garrison | Triggered checkpoint 9668 | -8/Garrison | Garrison Relay disabled 9679 | -8/Garrison | Triggered checkpoint 9698 | -8/Garrison | Discovered new exit (range 8) 9864 | -8/Garrison | Triggered checkpoint 9928 | -8/Garrison | Discovered new exit (range 8) 9956 | -8/Garrison | Triggered checkpoint 10057 | -8/Garrison | Garrison Relay disabled 10090 | -8/Garrison | Triggered checkpoint 10185 | -8/Garrison | Triggered checkpoint 10277 | -8/Garrison | Learned Materials security intel 10288 | -8/Garrison | Garrison Relay disabled 10297 | -8/Garrison | Triggered checkpoint 10330 | -8/Garrison | Discovered new exit (range 12) 10330 | -8/Garrison | Discovered new exit (range 43) 10330 | -8/Garrison | Discovered new exit (range 66) 10538 | -8/Garrison | Entered Materials 10806 | -8/Materials | Build established: Bothacker-Mutant 10903 | -8/Materials | Garrison activated, responded to threat 11172 | -8/Materials | Build established: Scavenger-Mutant 11396 | -8/Materials | Core integrity fell below 50% 11692 | -8/Materials | Learned 8 Factory zone layouts 11765 | -8/Materials | Learned location of Lower Caves (-7) 11885 | -8/Materials | Learned 4 Factory zone layouts 11928 | -8/Materials | Learned 4 Factory zone layouts 12001 | -8/Materials | Learned 12 Factory zone layouts 12138 | -8/Materials | First assault squad dispatched 12165 | -8/Materials | Garrison activated, responded to threat 12213 | -8/Materials | Identified exit to Garrison 12213 | -8/Materials | Entered Garrison 12213 | -8/Garrison | Accompanied by 2 allies 12264 | -8/Garrison | Learned Factory security intel 12598 | -8/Garrison | Garrison Relay disabled 12742 | -8/Garrison | Triggered checkpoint 12755 | -8/Garrison | Triggered checkpoint 12948 | -8/Garrison | Triggered checkpoint 12970 | -8/Garrison | Triggered checkpoint 13257 | -8/Garrison | Discovered exit to Factory (range 11) 13299 | -8/Garrison | Triggered checkpoint 13325 | -8/Garrison | Garrison Relay disabled 13495 | -8/Garrison | Triggered checkpoint 13546 | -8/Garrison | Garrison Relay disabled 13550 | -8/Garrison | Garrison Relay disabled 13609 | -8/Garrison | Garrison Relay disabled 13697 | -8/Garrison | Discovered exit to Factory (range 9) 13715 | -8/Garrison | Triggered checkpoint 13852 | -8/Garrison | Discovered new exit (range 6) 13870 | -8/Garrison | Core integrity fell below 20% 14102 | -8/Garrison | Expanded RIF knowledge: Coupler Efficiency 14145 | -8/Garrison | Triggered checkpoint 14212 | -8/Garrison | Garrison Relay disabled 14229 | -8/Garrison | Triggered checkpoint 14256 | -8/Garrison | Discovered exit to Factory (range 13) 14512 | -8/Garrison | Entered Materials 14512 | -8/Materials | Accompanied by 2 allies 14690 | -8/Materials | Identified exit to Garrison 14710 | -8/Materials | Build established: Bothacker-Mutant 14787 | -8/Materials | Entered Garrison 14787 | -8/Garrison | Accompanied by 2 allies 14854 | -8/Garrison | Triggered checkpoint 14902 | -8/Garrison | Triggered checkpoint 14905 | -8/Garrison | P-60 Hacker assimilated allied Trooper 3a 14959 | -8/Garrison | Garrison Relay disabled 14979 | -8/Garrison | Triggered checkpoint 14991 | -8/Garrison | Destroyed by Y-45 Defender with Heavy Assault Rifle Last Messages --------------- 14911_ P-60 Hacker suffers critical hit (Destroy). 14911_ Destroyed Mic. Nuclear Core. 14911_ P-60 Hacker knocked back. 14917_ P-60 Hacker destroyed. 14931_ Machinist 3a repairs Mic. Nuclear Core. 14933_ Machinist 3a repairs Imp. Carbon-fiber Leg. 14943_ Acquired 33 matter. 14945_ Acquired 26 matter. 14959_ Garrison Relay disabled. 14959_ Relay Coupler [Grunt] tumbles out of relay unit. 14959_ Relay Coupler [NC] tumbles out of relay unit. 14965_ Discarded Relay Coupler [Grunt]. 14967_ System corrupted: Matter fused (-8). 14969_ Dropped Relay Coupler [NC]. 14969_ Acquired Relay Coupler [Grunt]. 14979_ Beams of light sweep through the air. An alarm sounds. 14981_ S-10 Pest destroyed. 14983_ System corrupted: Imp. Grenade Launcher failed to launch. 14985_ Mic. Nuclear Core destroyed. 14987_ S-10 Pest destroyed. Map ----- +----------------------------------------------------+ | ????????????????????????????????????????? | | ????????????????????????????????????????? | | ????????????????????????????????????????? | | ????????????????????????????????????????? | | ????????????????????????????????????????? | | ????????????????????????????????????????? | | ????????????????????????????????????????? | | ????????????????????????????????????????? | | ????????????????????????????????????????? | | ????????????????????????????????????????? | | ????????????????????????????????????????? | | ????????????????????????????????????????? | | ??????????????????????????####??????????? | | ????######???????????????? ??????????? | | ???? +???????????????? ??????????? | | ????? #???????????????? ???????????? | | ????? +???????????????? ?##????????? | | ?????# #???????????????# ?????????? | | ?????# #???????????????# # #?????????? | | ?????# #???????????????# #?????????? | | ?????# #??????????????## #?????????? | | ?????# ###+##??######## *#?????????? | | ?????# ## #??#"!"""## % ??????????? | | # ####! ## ##### ! ### ###?????????? | | +% ! #?????????? | | + [%=[ @ #??????????? | | ######| *############### Y #?????????? | | ?????# #?????????????### ##?????????? | | ?????# #???????????????# ###??????????? | | ?????# #????????????????##????????????? | | ?????# #??????????????????????????????? | | ?????# #??????????????????????????????? | | ?????# #??????????????????????????????? | | ?????# #??????????????????????????????? | | ?????# #??????????????????????????????? | | ?????# #??????????????????????????????? | | ?????# #??????????????????????????????? | | ?????# #??????????????????????????????? | | ?????# #??????????????????????????????? | | ?????# #??????????????????????????????? | | ?????# #??????????????????????????????? | | ?????# #??????????????????????????????? | | ?????# #??????????????????????????????? | | ####?# #??????????????????????????????? | | ### #??????????????????????????????? | | +# " ###????????????????????????????? | | ?# ## #????????????????????????????? | | ?# ## #????????????????????????????? | | ?# ## #????????????????????????????? | | +# ########????????????????????????????? | +----------------------------------------------------+ Best States ------------- Heat Dissipation 121 Coolant Potential 120 Energy Generation 23 Energy Capacity 280 Matter Stores 390 Matter Capacity 500 Sight Range 16 Robot Scan Range 20 Terrain Scan Density 10 Armor Coverage 600 Evasion (%) 55 Targeting Accuracy 12 Core Analysis 6 Recoil Reduction 3 Offensive Hacking 10 Relay Coupler Types 2 Relay Coupler Value 46 Item Schematics ----------------- Imp. Flight Unit | -9/Materials | Scanalyzed Exp. Sensor Array | -9/Materials | Scanalyzed Coolant Network | -8/Materials | Scanalyzed Adv. Myomer Leg | -8/Materials | Scanalyzed Robot Schematics ------------------ None Fabricated ------------ Nothing Repaired ---------- Lgt. Treads | 7% | -10/Materials Lgt. Treads | 17% | -10/Materials Exp. Sensor Array | 62% | -9/Materials EM Pulse Gun | 64% | -9/Materials Coolant Network | 68% | -8/Materials | Broken Lgt. Particle Reactor | 28% | -8/Materials Adv. Myomer Leg | 53% | -8/Materials Studied --------- Hvy. Assault Rifle | -9/Materials | Hacked Lgt. Ion Engine | -9/Materials | Hacked Wheel | -9/Materials | Hacked Lgt. Treads | -9/Materials | Hacked Alien Tech Used ----------------- None Achievements -------------- None Challenges ------------ None Game ------ Seed GyrokineticStrikeWall Manual? 0 Play Time 02:22:04 Cumulative 1680.7 hours Start 2026.07.11 @ 14:18:58 End 2026.07.11 @ 16:49:34 Sessions 1 Manual Loads 0 Difficulty Rogue Special Mode None Game No. 516 Rogue 508 Adventurer 4 Explorer 4 Win Type - Total 66 Types 31/8/4/4/2/4/6/2/3/2 Lore% 97 Gallery% 96 Achievement% 91 Wizard Run 0 Options --------- Layout 0 ASCII 0 Keyboard 0 Movement Numpad Keybinds 0 Fullscreen 2 Font 18/SmallcapsGlow Map View 76x50 Zoom Use 0% Tactical HUD 1 Map Filters NONE Filters NONE Steam 1 RUN: 0b3bd539-4b5d-4009-9144-0a84276853d5